Workbook

Sheet Introduction

Sheet Assumptions
A1: Assumptions
B3: Other Assumptions | F3: Debt Assumptions
B4: Holding Period (Yr) | D4: 10 | F4: Loan Amount | H4: =+G12 -> 37215600
B5: Number of Rooms | D5: 247 | F5: LTV | H5: =+G12/G14 -> 0.6
B6: Going-in Cap Rate | D6: =+'Cash Flow'!D43/Assumptions!G17 -> 0.06044526095 | F6: Interest-Only (Year) | H6: 0
B7: Exit Cap Rate | D7: 0.06 | F7: Amortization (Year) | H7: 30
B8: Disposition Costs | D8: 0.02 | F8: Interest Rate | H8: 0.05
B10: Growth Assumptions | F10: Uses and Sources | G10: $ | H10: $ / Keys
B11: Annual Food and Beverage Revenue Growth | D11: 0.03 | F11: Sources:
B12: Telephone Revenue Growth | D12: 0.03 | F12: Loan | G12: =+G14*0.6 -> 37215600 | H12: =+G12/$D$5 -> 150670.4453
B13: Other Income Growth | D13: 0.03 | F13: Equity | G13: =G14-G12 -> 24810400 | H13: =+G13/$D$5 -> 100446.9636
B14: Non-Operating Expense Growth | D14: 0.03 | F14: Total Sources | G14: =G23 -> 62026000 | H14: =SUM(H12:H13) -> 251117.4089
B16: Return Metrics | F16: Uses:
B17: =+'Cash Flow'!B67 -> Deal Level IRR | D17: =+'Cash Flow'!C67 -> 0.141501844 | F17: Purchase Price | G17: 59000000 | H17: =+G17/$D$5 -> 238866.3968
B18: =+'Cash Flow'!B68 -> Multiple | D18: =+'Cash Flow'!C68 -> 3.245786018 | F18: Closing Cost | G18: 800000 | H18: =+G18/$D$5 -> 3238.866397
B19: =+'Cash Flow'!B69 -> Net Profit | D19: =+'Cash Flow'!C69 -> 83578274.13 | F19: Legal | G19: 1760000 | H19: =+G19/$D$5 -> 7125.506073
B20: =+'Cash Flow'!B70 -> Capital | D20: =+'Cash Flow'!C70 -> 37215600 | F20: Working Capital | G20: 0 | H20: 0
F21: Mortgage Brokerage Fee | G21: 0 | H21: 0
F22: DD Fees | G22: 466000 | H22: 1886.639676
F23: Total Uses | G23: =SUM(G17:G22) -> 62026000 | H23: =SUM(H17:H22) -> 251117.4089

Sheet Operation Projection
A1: Operation Projection
B3: Year | D3: 0 | E3: 1 | F3: Ratio | G3: =E3+1 -> 2 | H3: Ratio | I3: =G3+1 -> 3 | J3: Ratio | K3: =+I3+1 -> 4 | L3: Ratio | M3: =+K3+1 -> 5 | N3: Ratio | O3: =+M3+1 -> 6 | P3: Ratio | Q3: =+O3+1 -> 7 | R3: Ratio | S3: =+Q3+1 -> 8 | T3: Ratio | U3: =+S3+1 -> 9 | V3: Ratio | W3: =+U3+1 -> 10 | X3: Ratio | Y3: =+W3+1 -> 11 | Z3: Ratio
B4: OPERATING STATISTICS
B5: Number of Rooms | E5: =+Assumptions!D5 -> 247 | G5: =+E5 -> 247 | I5: =+G5 -> 247 | K5: =+I5 -> 247 | M5: =+K5 -> 247 | O5: =+M5 -> 247 | Q5: =+O5 -> 247 | S5: =+Q5 -> 247 | U5: =+S5 -> 247 | W5: =+U5 -> 247 | Y5: =+W5 -> 247
B6: Available Rooms | E6: =E5*365 -> 90155 | G6: =G5*365 -> 90155 | I6: =I5*365 -> 90155 | K6: =K5*365 -> 90155 | M6: =M5*365 -> 90155 | O6: =O5*365 -> 90155 | Q6: =Q5*365 -> 90155 | S6: =S5*365 -> 90155 | U6: =U5*365 -> 90155 | W6: =W5*365 -> 90155 | Y6: =Y5*365 -> 90155
B7: Occupied Rooms | E7: =E8*E6 -> 64524.91433 | G7: =G8*G6 -> 65813.15 | I7: =I8*I6 -> 67616.25 | K7: =K8*K6 -> 69870.125 | M7: =M8*M6 -> 72124 | O7: =O8*O6 -> 73927.1 | Q7: =Q8*Q6 -> 76631.75 | S7: =S8*S6 -> 78434.85 | U7: =U8*U6 -> 80237.95 | W7: =W8*W6 -> 80237.95 | Y7: =Y8*Y6 -> 80237.95
B8: Occupancy Rate | E8: 0.7157108794 | G8: 0.73 | I8: 0.75 | K8: 0.775 | M8: 0.8 | O8: 0.82 | Q8: 0.85 | S8: 0.87 | U8: 0.89 | W8: 0.89 | Y8: 0.89
B9: Average Rate | E9: 302.06995 | G9: =+E9*(1+G10) -> 311.1320485 | I9: =+G9*(1+I10) -> 320.46601 | K9: =+I9*(1+K10) -> 330.0799903 | M9: =+K9*(1+M10) -> 339.98239 | O9: =+M9*(1+O10) -> 350.1818617 | Q9: =+O9*(1+Q10) -> 360.6873175 | S9: =+Q9*(1+S10) -> 371.507937 | U9: =+S9*(1+U10) -> 382.6531751 | W9: =+U9*(1+W10) -> 394.1327704 | Y9: =+W9*(1+Y10) -> 405.9567535
B10: ADR Growth | E10: NA | G10: 0.03 | I10: =+G10 -> 0.03 | K10: =+I10 -> 0.03 | M10: =+K10 -> 0.03 | O10: =+M10 -> 0.03 | Q10: =+O10 -> 0.03 | S10: =+Q10 -> 0.03 | U10: =+S10 -> 0.03 | W10: =+U10 -> 0.03 | Y10: =+W10 -> 0.03
B11: RevPAR | E11: =E8*E9 -> 216.1947495 | G11: =G8*G9 -> 227.1263954 | I11: =I8*I9 -> 240.3495075 | K11: =K8*K9 -> 255.8119924 | M11: =M8*M9 -> 271.985912 | O11: =O8*O9 -> 287.1491266 | Q11: =Q8*Q9 -> 306.5842199 | S11: =S8*S9 -> 323.2119052 | U11: =U8*U9 -> 340.5613259 | W11: =W8*W9 -> 350.7781657 | Y11: =Y8*Y9 -> 361.3015106
B12: RevPAR Growth | E12: NA | G12: =+G11/E11-1 -> 0.05056388225 | I12: =+I11/G11-1 -> 0.05821917808 | K12: =+K11/I11-1 -> 0.06433333333 | M12: =+M11/K11-1 -> 0.06322580645 | O12: =+O11/M11-1 -> 0.05575 | Q12: =+Q11/O11-1 -> 0.06768292683 | S12: =+S11/Q11-1 -> 0.05423529412 | U12: =+U11/S11-1 -> 0.05367816092 | W12: =+W11/U11-1 -> 0.03 | Y12: =+Y11/W11-1 -> 0.03
B15: REVENUES
B16: Rooms | E16: =E7*E9 -> 19491037.65 | F16: =E16/$E$20 -> 0.9992662038 | G16: =G7*G9 -> 20476580.18 | H16: =G16/$G$20 -> 0.9992805569 | I16: =I7*I9 -> 21668709.85 | J16: =I16/I$20 -> 0.9992997286 | K16: =K7*K9 -> 23062730.18 | L16: =K16/K$20 -> 0.9993223027 | M16: =M7*M9 -> 24520889.89 | N16: =M16/M$20 -> 0.9993434668 | O16: =O7*O9 -> 25887929.51 | P16: =O16/O$20 -> 0.9993594696 | Q16: =Q7*Q9 -> 27640100.34 | R16: =Q16/Q$20 -> 0.9993820626 | S16: =S7*S9 -> 29139169.32 | T16: =S16/S$20 -> 0.9993962594 | U16: =U7*U9 -> 30703306.33 | V16: =U16/U$20 -> 0.9994098186 | W16: =W7*W9 -> 31624405.52 | X16: =W16/W$20 -> 0.9994098186 | Y16: =Y7*Y9 -> 32573137.69 | Z16: =Y16/Y$20 -> 0.9994098186
B17: Food & Beverage | E17: 14042.49371 | F17: =E17/$E$20 -> 0.0007199303414 | G17: =+E17*(1+Assumptions!$D$11) -> 14463.76853 | H17: =G17/$G$20 -> 0.000705848464 | I17: =+G17*(1+Assumptions!$D$11) -> 14897.68158 | J17: =I17/I$20 -> 0.0006870390193 | K17: =+I17*(1+Assumptions!$D$11) -> 15344.61203 | L17: =K17/K$20 -> 0.0006648914897 | M17: =+K17*(1+Assumptions!$D$11) -> 15804.95039 | N17: 0.000644127272 | O17: =+M17*(1+Assumptions!$D$11) -> 16279.0989 | P17: =O17/O$20 -> 0.0006284269138 | Q17: =+O17*(1+Assumptions!$D$11) -> 16767.47187 | R17: 0.0006062608461 | S17: =+Q17*(1+Assumptions!$D$11) -> 17270.49602 | T17: =S17/S$20 -> 0.0005923322295 | U17: =+S17*(1+Assumptions!$D$11) -> 17788.6109 | V17: 0.0005790292487 | W17: =+U17*(1+Assumptions!$D$11) -> 18322.26923 | X17: =W17/W$20 -> 0.0005790292487 | Y17: =+W17*(1+Assumptions!$D$11) -> 18871.93731 | Z17: 0.0005790292487
B18: Telephone | E18: 62.47438353 | F18: 3.202935688e-06 | G18: =+E18*(1+Assumptions!$D$12) -> 64.34861504 | H18: 3.140286088e-06 | I18: =+G18*(1+Assumptions!$D$12) -> 66.27907349 | J18: 3.056603767e-06 | K18: =+I18*(1+Assumptions!$D$12) -> 68.26744569 | L18: 2.958070467e-06 | M18: =+K18*(1+Assumptions!$D$12) -> 70.31546907 | N18: 2.865691455e-06 | O18: =+M18*(1+Assumptions!$D$12) -> 72.42493314 | P18: =O18/O$20 -> 2.795841311e-06 | Q18: =+O18*(1+Assumptions!$D$12) -> 74.59768113 | R18: 2.697225535e-06 | S18: =+Q18*(1+Assumptions!$D$12) -> 76.83561157 | T18: =S18/S$20 -> 2.635257785e-06 | U18: =+S18*(1+Assumptions!$D$12) -> 79.14067991 | V18: 2.576073459e-06 | W18: =+U18*(1+Assumptions!$D$12) -> 81.51490031 | X18: =W18/W$20 -> 2.576073459e-06 | Y18: =+W18*(1+Assumptions!$D$12) -> 83.96034732 | Z18: 2.576073459e-06
B19: Other Income | E19: 207.9841762 | F19: 1.066292939e-05 | G19: =+E19*(1+Assumptions!$D$13) -> 214.2237015 | H19: 1.04543619e-05 | I19: =+G19*(1+Assumptions!$D$13) -> 220.6504125 | J19: 1.017577414e-05 | K19: =+I19*(1+Assumptions!$D$13) -> 227.2699249 | L19: 9.847745818e-06 | M19: =+K19*(1+Assumptions!$D$13) -> 234.0880226 | N19: 9.540205804e-06 | O19: =+M19*(1+Assumptions!$D$13) -> 241.1106633 | P19: =O19/O$20 -> 9.307666902e-06 | Q19: =+O19*(1+Assumptions!$D$13) -> 248.3439832 | R19: 8.979364007e-06 | S19: =+Q19*(1+Assumptions!$D$13) -> 255.7943027 | T19: =S19/S$20 -> 8.773066471e-06 | U19: =+S19*(1+Assumptions!$D$13) -> 263.4681318 | V19: 8.576035263e-06 | W19: =+U19*(1+Assumptions!$D$13) -> 271.3721758 | X19: =W19/W$20 -> 8.576035263e-06 | Y19: =+W19*(1+Assumptions!$D$13) -> 279.513341 | Z19: 8.576035263e-06
B20: Gross Operating Revenue (GOR) | E20: =SUM(E16:E19) -> 19505350.6 | F20: 1 | G20: 20491322.52 | H20: 1 | I20: 21683894.46 | J20: 1 | K20: 23078370.33 | L20: 1 | M20: 24536999.25 | N20: 1 | O20: 25904522.14 | P20: 1 | Q20: 27657190.76 | R20: 1 | S20: 29156772.44 | T20: 1 | U20: 30721437.55 | V20: 1 | W20: 31643080.68 | X20: 1 | Y20: 32592373.1 | Z20: 1
B23: DEPARTMENTAL EXPENSES
B24: Rooms | E24: =-E16*F24 -> -7796415.058 | F24: 0.4 | G24: =-G16*H24 -> -8190632.071 | H24: =+F24 -> 0.4 | I24: =-I16*J24 -> -8667483.938 | J24: =+H24 -> 0.4 | K24: =-K16*L24 -> -9225092.072 | L24: =+J24 -> 0.4 | M24: =-M16*N24 -> -9808355.957 | N24: =+L24 -> 0.4 | O24: =-O16*P24 -> -10355171.8 | P24: =+N24 -> 0.4 | Q24: =-Q16*R24 -> -11056040.14 | R24: =+P24 -> 0.4 | S24: =-S16*T24 -> -11655667.73 | T24: =+R24 -> 0.4 | U24: =-U16*V24 -> -12281322.53 | V24: =+T24 -> 0.4 | W24: =-W16*X24 -> -12649762.21 | X24: =+V24 -> 0.4 | Y24: =-Y16*Z24 -> -13029255.08 | Z24: =+X24 -> 0.4
B25: Food & Beverage | E25: =-E17*F25 -> -10531.87029 | F25: 0.75 | G25: =-G17*H25 -> -10847.82639 | H25: =+F25 -> 0.75 | I25: -11173.26119 | J25: =+H25 -> 0.75 | K25: =-K17*L25 -> -11508.45902 | L25: =+J25 -> 0.75 | M25: =-M17*N25 -> -11853.71279 | N25: =+L25 -> 0.75 | O25: =-O17*P25 -> -12209.32418 | P25: =+N25 -> 0.75 | Q25: =-Q17*R25 -> -12575.6039 | R25: =+P25 -> 0.75 | S25: =-S17*T25 -> -12952.87202 | T25: =+R25 -> 0.75 | U25: =-U17*V25 -> -13341.45818 | V25: =+T25 -> 0.75 | W25: =-W17*X25 -> -13741.70192 | X25: =+V25 -> 0.75 | Y25: =-Y17*Z25 -> -14153.95298 | Z25: =+X25 -> 0.75
B26: Telephone | E26: =-E18*F26 -> -56.22694518 | F26: 0.9 | G26: -57.91375353 | H26: 0.9 | I26: -59.65116614 | J26: 0.9 | K26: =-K18*L26 -> -61.44070113 | L26: 0.9 | M26: =-M18*N26 -> -63.28392216 | N26: 0.9 | O26: =-O18*P26 -> -65.18243982 | P26: 0.9 | Q26: =-Q18*R26 -> -67.13791302 | R26: 0.9 | S26: =-S18*T26 -> -69.15205041 | T26: 0.9 | U26: =-U18*V26 -> -71.22661192 | V26: 0.9 | W26: =-W18*X26 -> -73.36341028 | X26: 0.9 | Y26: =-Y18*Z26 -> -75.56431259 | Z26: 0.9
B27: Other Expenses | E27: -187.1857586 | F27: 0.9 | G27: -192.8013313 | H27: 0.9 | I27: -198.5853713 | J27: 0.9 | K27: =-K19*L27 -> -204.5429324 | L27: 0.9 | M27: =-M19*N27 -> -210.6792204 | N27: 0.9 | O27: =-O19*P27 -> -216.999597 | P27: 0.9 | Q27: =-Q19*R27 -> -223.5095849 | R27: 0.9 | S27: =-S19*T27 -> -230.2148724 | T27: 0.9 | U27: =-U19*V27 -> -237.1213186 | V27: 0.9 | W27: =-W19*X27 -> -244.2349582 | X27: 0.9 | Y27: =-Y19*Z27 -> -251.5620069 | Z27: 0.9
B28: Total Departmental Expenses | E28: =SUM(E24:E27) -> -7807190.341 | F28: =-E28/E20 -> 0.4002589086 | G28: =SUM(G24:G27) -> -8201730.613 | H28: =-G28/G20 -> 0.4002538443 | I28: =SUM(I24:I27) -> -8678915.436 | J28: =-I28/I20 -> 0.4002470798 | K28: =SUM(K24:K27) -> -9236866.514 | L28: =-K28/K20 -> 0.4002391149 | M28: =SUM(M24:M27) -> -9820483.633 | N28: =-M28/M20 -> 0.4002316475 | O28: =SUM(O24:O27) -> -10367663.31 | P28: =-O28/O20 -> 0.4002260012 | Q28: =SUM(Q24:Q27) -> -11068906.39 | R28: =-Q28/Q20 -> 0.4002180296 | S28: =SUM(S24:S27) -> -11668919.97 | T28: =-S28/S20 -> 0.4002130204 | U28: =SUM(U24:U27) -> -12294972.34 | V28: =-U28/U20 -> 0.4002082363 | W28: =SUM(W24:W27) -> -12663821.51 | X28: =-W28/W20 -> 0.4002082363 | Y28: =SUM(Y24:Y27) -> -13043736.16 | Z28: =-Y28/Y20 -> 0.4002082363
B31: Total Gross Income | E31: =E20+E28 -> 11698160.26 | F31: =E31/E20 -> 0.5997410914 | G31: =G20+G28 -> 12289591.91 | H31: =G31/G20 -> 0.5997461557 | I31: =I20+I28 -> 13004979.02 | J31: =I31/I20 -> 0.5997529202 | K31: =K20+K28 -> 13841503.81 | L31: =K31/K20 -> 0.5997608851 | M31: =M20+M28 -> 14716515.61 | N31: =M31/M20 -> 0.5997683525 | O31: =O20+O28 -> 15536858.83 | P31: =O31/O20 -> 0.5997739988 | Q31: =Q20+Q28 -> 16588284.37 | R31: =Q31/Q20 -> 0.5997819704 | S31: =S20+S28 -> 17487852.48 | T31: =S31/S20 -> 0.5997869796 | U31: =U20+U28 -> 18426465.21 | V31: =U31/U20 -> 0.5997917637 | W31: =W20+W28 -> 18979259.17 | X31: =W31/W20 -> 0.5997917637 | Y31: =Y20+Y28 -> 19548636.95 | Z31: =Y31/Y20 -> 0.5997917637
B34: UNDISTRIBUTED OPERATING EXPENSES
B35: Administrative and General | E35: =-F35*E$20 -> -975267.5299 | F35: 0.05 | G35: =-H35*G$20 -> -1024566.126 | H35: =+F35 -> 0.05 | I35: =-J35*I$20 -> -1084194.723 | J35: =+H35 -> 0.05 | K35: =-L35*K$20 -> -1153918.516 | L35: =+J35 -> 0.05 | M35: =-N35*M$20 -> -1226849.962 | N35: =+L35 -> 0.05 | O35: =-P35*O$20 -> -1295226.107 | P35: =+N35 -> 0.05 | Q35: =-R35*Q$20 -> -1382859.538 | R35: =+P35 -> 0.05 | S35: =-T35*S$20 -> -1457838.622 | T35: =+R35 -> 0.05 | U35: =-V35*U$20 -> -1536071.878 | V35: =+T35 -> 0.05 | W35: =-X35*W$20 -> -1582154.034 | X35: =+V35 -> 0.05 | Y35: =-Z35*Y$20 -> -1629618.655 | Z35: =+X35 -> 0.05
B36: Sales & Marketing | E36: =-F36*E$20 -> -1072794.283 | F36: 0.055 | G36: -1127022.739 | H36: =+F36 -> 0.055 | I36: =-J36*I$20 -> -1192614.195 | J36: 0.055 | K36: =-L36*K$20 -> -1269310.368 | L36: 0.055 | M36: =-N36*M$20 -> -1349534.959 | N36: 0.055 | O36: =-P36*O$20 -> -1424748.718 | P36: 0.055 | Q36: =-R36*Q$20 -> -1521145.492 | R36: 0.055 | S36: =-T36*S$20 -> -1603622.484 | T36: 0.055 | U36: =-V36*U$20 -> -1689679.065 | V36: 0.055 | W36: =-X36*W$20 -> -1740369.437 | X36: 0.055 | Y36: =-Z36*Y$20 -> -1792580.521 | Z36: 0.055
B37: Property Operation & Maintenance | E37: -682687.2709 | F37: 0.035 | G37: -717196.2882 | H37: 0.035 | I37: =-J37*I$20 -> -758936.306 | J37: 0.035 | K37: =-L37*K$20 -> -807742.9615 | L37: 0.035 | M37: =-N37*M$20 -> -858794.9737 | N37: 0.035 | O37: =-P37*O$20 -> -906658.2749 | P37: 0.035 | Q37: =-R37*Q$20 -> -968001.6765 | R37: 0.035 | S37: =-T37*S$20 -> -1020487.035 | T37: 0.035 | U37: =-V37*U$20 -> -1075250.314 | V37: 0.035 | W37: =-X37*W$20 -> -1107507.824 | X37: 0.035 | Y37: =-Z37*Y$20 -> -1140733.059 | Z37: 0.035
B38: Utilities | E38: -390107.012 | F38: 0.02 | G38: -409826.4504 | H38: 0.02 | I38: =-J38*I$20 -> -433677.8891 | J38: 0.02 | K38: =-L38*K$20 -> -461567.4066 | L38: 0.02 | M38: =-N38*M$20 -> -490739.9849 | N38: 0.02 | O38: =-P38*O$20 -> -518090.4428 | P38: 0.02 | Q38: =-R38*Q$20 -> -553143.8151 | R38: 0.02 | S38: =-T38*S$20 -> -583135.4488 | T38: 0.02 | U38: =-V38*U$20 -> -614428.7511 | V38: 0.02 | W38: =-X38*W$20 -> -632861.6136 | X38: 0.02 | Y38: =-Z38*Y$20 -> -651847.462 | Z38: 0.02
B39: Total Undistributed Operating Expenses | E39: =SUM(E35:E38) -> -3120856.096 | F39: =-E39/E20 -> 0.16 | G39: =SUM(G35:G38) -> -3278611.603 | H39: =-G39/G20 -> 0.16 | I39: =SUM(I35:I38) -> -3469423.113 | J39: =-I39/I20 -> 0.16 | K39: =SUM(K35:K38) -> -3692539.253 | L39: =-K39/K20 -> 0.16 | M39: =SUM(M35:M38) -> -3925919.88 | N39: =-M39/M20 -> 0.16 | O39: =SUM(O35:O38) -> -4144723.542 | P39: =-O39/O20 -> 0.16 | Q39: =SUM(Q35:Q38) -> -4425150.521 | R39: =-Q39/Q20 -> 0.16 | S39: =SUM(S35:S38) -> -4665083.591 | T39: =-S39/S20 -> 0.16 | U39: =SUM(U35:U38) -> -4915430.009 | V39: =-U39/U20 -> 0.16 | W39: =SUM(W35:W38) -> -5062892.909 | X39: =-W39/W20 -> 0.16 | Y39: =SUM(Y35:Y38) -> -5214779.696 | Z39: =-Y39/Y20 -> 0.16
B42: Gross Operating Profit | E42: =E31+E39 -> 8577304.161 | F42: =E42/E20 -> 0.4397410914 | G42: =G31+G39 -> 9010980.303 | H42: =G42/G20 -> 0.4397461557 | I42: =I31+I39 -> 9535555.908 | J42: =I42/I20 -> 0.4397529202 | K42: =K31+K39 -> 10148964.56 | L42: =K42/K20 -> 0.4397608851 | M42: =M31+M39 -> 10790595.73 | N42: =M42/M20 -> 0.4397683525 | O42: =O31+O39 -> 11392135.29 | P42: =O42/O20 -> 0.4397739988 | Q42: =Q31+Q39 -> 12163133.85 | R42: =Q42/Q20 -> 0.4397819704 | S42: =S31+S39 -> 12822768.89 | T42: =S42/S20 -> 0.4397869796 | U42: =U31+U39 -> 13511035.21 | V42: =U42/U20 -> 0.4397917637 | W42: =W31+W39 -> 13916366.26 | X42: =W42/W20 -> 0.4397917637 | Y42: =Y31+Y39 -> 14333857.25 | Z42: =Y42/Y20 -> 0.4397917637
B45: NON-OPERATING EXPENSES
B46: Management Fees | E46: =-F46*E20 -> -487633.7649 | F46: 0.025 | G46: =-H46*G20 -> -512283.063 | H46: =+F46 -> 0.025 | I46: =-J46*I20 -> -542097.3614 | J46: =+H46 -> 0.025 | K46: =-L46*K20 -> -576959.2582 | L46: =+J46 -> 0.025 | M46: =-N46*M20 -> -613424.9812 | N46: =+L46 -> 0.025 | O46: =-P46*O20 -> -647613.0535 | P46: =+N46 -> 0.025 | Q46: =-R46*Q20 -> -691429.7689 | R46: =+P46 -> 0.025 | S46: =-T46*S20 -> -728919.311 | T46: =+R46 -> 0.025 | U46: =-V46*U20 -> -768035.9389 | V46: =+T46 -> 0.025 | W46: =-X46*W20 -> -791077.017 | X46: =+V46 -> 0.025 | Y46: =-Z46*Y20 -> -814809.3275 | Z46: =+X46 -> 0.025
B47: Real Estate Taxes | E47: -2625000 | F47: =-E47/$E$20 -> 0.1345784577 | G47: =+E47*(1+Assumptions!$D$14) -> -2703750 | H47: =+F47 -> 0.1345784577 | I47: =+G47*(1+Assumptions!$D$14) -> -2784862.5 | J47: =+H47 -> 0.1345784577 | K47: =+I47*(1+Assumptions!$D$14) -> -2868408.375 | L47: =+J47 -> 0.1345784577 | M47: =+K47*(1+Assumptions!$D$14) -> -2954460.626 | N47: =+L47 -> 0.1345784577 | O47: =+M47*(1+Assumptions!$D$14) -> -3043094.445 | P47: =+N47 -> 0.1345784577 | Q47: =+O47*(1+Assumptions!$D$14) -> -3134387.278 | R47: =+P47 -> 0.1345784577 | S47: =+Q47*(1+Assumptions!$D$14) -> -3228418.897 | T47: =+R47 -> 0.1345784577 | U47: =+S47*(1+Assumptions!$D$14) -> -3325271.464 | V47: =+T47 -> 0.1345784577 | W47: =+U47*(1+Assumptions!$D$14) -> -3425029.608 | X47: =+V47 -> 0.1345784577 | Y47: =+W47*(1+Assumptions!$D$14) -> -3527780.496 | Z47: =+X47 -> 0.1345784577
B48: Insurance | E48: -214000 | F48: 0.01097134855 | G48: =+E48*(1+Assumptions!$D$14) -> -220420 | H48: 0.01097134855 | I48: =+G48*(1+Assumptions!$D$14) -> -227032.6 | J48: 0.01097134855 | K48: =+I48*(1+Assumptions!$D$14) -> -233843.578 | L48: 0.01097134855 | M48: =+K48*(1+Assumptions!$D$14) -> -240858.8853 | N48: 0.01097134855 | O48: =+M48*(1+Assumptions!$D$14) -> -248084.6519 | P48: 0.01097134855 | Q48: =+O48*(1+Assumptions!$D$14) -> -255527.1915 | R48: 0.01097134855 | S48: =+Q48*(1+Assumptions!$D$14) -> -263193.0072 | T48: 0.01097134855 | U48: =+S48*(1+Assumptions!$D$14) -> -271088.7974 | V48: 0.01097134855 | W48: =+U48*(1+Assumptions!$D$14) -> -279221.4613 | X48: 0.01097134855 | Y48: =+W48*(1+Assumptions!$D$14) -> -287598.1052 | Z48: 0.01097134855
B49: Ground Lease | E49: -332400 | F49: =-E49/$E$20 -> 0.01704147784 | G49: =+E49*(1+Assumptions!$D$14) -> -342372 | H49: 0.01704147784 | I49: =+G49*(1+Assumptions!$D$14) -> -352643.16 | J49: 0.01704147784 | K49: =+I49*(1+Assumptions!$D$14) -> -363222.4548 | L49: 0.01704147784 | M49: =+K49*(1+Assumptions!$D$14) -> -374119.1284 | N49: 0.01704147784 | O49: =+M49*(1+Assumptions!$D$14) -> -385342.7023 | P49: 0.01704147784 | Q49: =+O49*(1+Assumptions!$D$14) -> -396902.9834 | R49: 0.01704147784 | S49: =+Q49*(1+Assumptions!$D$14) -> -408810.0729 | T49: 0.01704147784 | U49: =+S49*(1+Assumptions!$D$14) -> -421074.3751 | V49: 0.01704147784 | W49: =+U49*(1+Assumptions!$D$14) -> -433706.6063 | X49: 0.01704147784 | Y49: =+W49*(1+Assumptions!$D$14) -> -446717.8045 | Z49: 0.01704147784
B50: Capital Reserves (FF&E) | E50: -1352000 | F50: 0.06931431421 | G50: =+E50*(1+Assumptions!$D$14) -> -1392560 | H50: 0.06931431421 | I50: =+G50*(1+Assumptions!$D$14) -> -1434336.8 | J50: 0.06931431421 | K50: =+I50*(1+Assumptions!$D$14) -> -1477366.904 | L50: 0.06931431421 | M50: =+K50*(1+Assumptions!$D$14) -> -1521687.911 | N50: 0.06931431421 | O50: =+M50*(1+Assumptions!$D$14) -> -1567338.548 | P50: 0.06931431421 | Q50: =+O50*(1+Assumptions!$D$14) -> -1614358.705 | R50: 0.06931431421 | S50: =+Q50*(1+Assumptions!$D$14) -> -1662789.466 | T50: 0.06931431421 | U50: =+S50*(1+Assumptions!$D$14) -> -1712673.15 | V50: 0.06931431421 | W50: =+U50*(1+Assumptions!$D$14) -> -1764053.345 | X50: 0.06931431421 | Y50: =+W50*(1+Assumptions!$D$14) -> -1816974.945 | Z50: 0.06931431421
B51: Total Non-operating expenses | E51: =SUM(E46:E50) -> -5011033.765 | F51: =-E51/E20 -> 0.2569055983 | G51: =SUM(G46:G50) -> -5171385.063 | H51: =-G51/G20 -> 0.2523695119 | I51: =SUM(I46:I50) -> -5340972.421 | J51: =-I51/I20 -> 0.2463105708 | K51: =SUM(K46:K50) -> -5519800.57 | L51: =-K51/K20 -> 0.2391763583 | M51: =SUM(M46:M50) -> -5704551.532 | N51: =-M51/M20 -> 0.2324877413 | O51: =SUM(O46:O50) -> -5891473.401 | P51: =-O51/O20 -> 0.2274303062 | Q51: =SUM(Q46:Q50) -> -6092605.927 | R51: =-Q51/Q20 -> 0.220290122 | S51: =SUM(S46:S50) -> -6292130.754 | T51: =-S51/S20 -> 0.2158034044 | U51: =SUM(U46:U50) -> -6498143.725 | V51: =-U51/U20 -> 0.211518218 | W51: =SUM(W46:W50) -> -6693088.037 | X51: =-W51/W20 -> 0.211518218 | Y51: =SUM(Y46:Y50) -> -6893880.678 | Z51: =-Y51/Y20 -> 0.211518218
B54: Net Operating Income | E54: =E42+E51 -> 3566270.396 | F54: =E54/$E$20 -> 0.1828354932 | G54: =G42+G51 -> 3839595.24 | H54: =G54/$E$20 -> 0.1968483069 | I54: =I42+I51 -> 4194583.486 | J54: =I54/$E$20 -> 0.2150478386 | K54: =K42+K51 -> 4629163.992 | L54: =K54/$E$20 -> 0.2373279049 | M54: =M42+M51 -> 5086044.202 | N54: =M54/$E$20 -> 0.2607512322 | O54: =O42+O51 -> 5500661.888 | P54: =O54/$E$20 -> 0.282007845 | Q54: =Q42+Q51 -> 6070527.92 | R54: =Q54/$E$20 -> 0.3112237275 | S54: =S42+S51 -> 6530638.132 | T54: =S54/$E$20 -> 0.3348126505 | U54: =U42+U51 -> 7012891.481 | V54: =U54/$E$20 -> 0.3595368074 | W54: =W42+W51 -> 7223278.225 | X54: =W54/$E$20 -> 0.3703229116 | Y54: =Y42+Y51 -> 7439976.572 | Z54: =Y54/$E$20 -> 0.381432599

Sheet Cash Flow
A1: Cash Flow
B3: Year | C3: 0 | D3: =+C3+1 -> 1 | E3: =+D3+1 -> 2 | F3: 3 | G3: 4 | H3: 5 | I3: 6 | J3: 7 | K3: 8 | L3: 9 | M3: 10 | N3: 11
B4: =+'Operation Projection'!B15 -> REVENUES
B5: =+'Operation Projection'!B16 -> Rooms | D5: =+'Operation Projection'!E16 -> 19491037.65 | E5: =+'Operation Projection'!G16 -> 20476580.18 | F5: =+'Operation Projection'!I16 -> 21668709.85 | G5: =+'Operation Projection'!K16 -> 23062730.18 | H5: =+'Operation Projection'!M16 -> 24520889.89 | I5: =+'Operation Projection'!O16 -> 25887929.51 | J5: =+'Operation Projection'!Q16 -> 27640100.34 | K5: =+'Operation Projection'!S16 -> 29139169.32 | L5: =+'Operation Projection'!U16 -> 30703306.33 | M5: =+'Operation Projection'!W16 -> 31624405.52 | N5: =+'Operation Projection'!Y16 -> 32573137.69
B6: =+'Operation Projection'!B17 -> Food & Beverage | D6: =+'Operation Projection'!E17 -> 14042.49371 | E6: =+'Operation Projection'!G17 -> 14463.76853 | F6: =+'Operation Projection'!I17 -> 14897.68158 | G6: =+'Operation Projection'!K17 -> 15344.61203 | H6: =+'Operation Projection'!M17 -> 15804.95039 | I6: =+'Operation Projection'!O17 -> 16279.0989 | J6: =+'Operation Projection'!Q17 -> 16767.47187 | K6: =+'Operation Projection'!S17 -> 17270.49602 | L6: =+'Operation Projection'!U17 -> 17788.6109 | M6: =+'Operation Projection'!W17 -> 18322.26923 | N6: =+'Operation Projection'!Y17 -> 18871.93731
B7: =+'Operation Projection'!B18 -> Telephone | D7: =+'Operation Projection'!E18 -> 62.47438353 | E7: =+'Operation Projection'!G18 -> 64.34861504 | F7: =+'Operation Projection'!I18 -> 66.27907349 | G7: =+'Operation Projection'!K18 -> 68.26744569 | H7: =+'Operation Projection'!M18 -> 70.31546907 | I7: =+'Operation Projection'!O18 -> 72.42493314 | J7: =+'Operation Projection'!Q18 -> 74.59768113 | K7: =+'Operation Projection'!S18 -> 76.83561157 | L7: =+'Operation Projection'!U18 -> 79.14067991 | M7: =+'Operation Projection'!W18 -> 81.51490031 | N7: =+'Operation Projection'!Y18 -> 83.96034732
B8: =+'Operation Projection'!B19 -> Other Income | D8: =+'Operation Projection'!E19 -> 207.9841762 | E8: =+'Operation Projection'!G19 -> 214.2237015 | F8: =+'Operation Projection'!I19 -> 220.6504125 | G8: =+'Operation Projection'!K19 -> 227.2699249 | H8: =+'Operation Projection'!M19 -> 234.0880226 | I8: =+'Operation Projection'!O19 -> 241.1106633 | J8: =+'Operation Projection'!Q19 -> 248.3439832 | K8: =+'Operation Projection'!S19 -> 255.7943027 | L8: =+'Operation Projection'!U19 -> 263.4681318 | M8: =+'Operation Projection'!W19 -> 271.3721758 | N8: =+'Operation Projection'!Y19 -> 279.513341
B9: =+'Operation Projection'!B20 -> Gross Operating Revenue (GOR) | D9: =SUM(D5:D8) -> 19505350.6 | E9: =SUM(E5:E8) -> 20491322.52 | F9: 21683894.46 | G9: 23078370.33 | H9: 24536999.25 | I9: 25904522.14 | J9: 27657190.76 | K9: 29156772.44 | L9: 30721437.55 | M9: 31643080.68 | N9: 32592373.1
B12: =+'Operation Projection'!B23 -> DEPARTMENTAL EXPENSES
B13: =+'Operation Projection'!B24 -> Rooms | D13: =+'Operation Projection'!E24 -> -7796415.058 | E13: =+'Operation Projection'!G24 -> -8190632.071 | F13: =+'Operation Projection'!I24 -> -8667483.938 | G13: =+'Operation Projection'!K24 -> -9225092.072 | H13: =+'Operation Projection'!M24 -> -9808355.957 | I13: =+'Operation Projection'!O24 -> -10355171.8 | J13: =+'Operation Projection'!Q24 -> -11056040.14 | K13: =+'Operation Projection'!S24 -> -11655667.73 | L13: =+'Operation Projection'!U24 -> -12281322.53 | M13: =+'Operation Projection'!W24 -> -12649762.21 | N13: =+'Operation Projection'!Y24 -> -13029255.08
B14: =+'Operation Projection'!B25 -> Food & Beverage | D14: =+'Operation Projection'!E25 -> -10531.87029 | E14: =+'Operation Projection'!G25 -> -10847.82639 | F14: =+'Operation Projection'!I25 -> -11173.26119 | G14: =+'Operation Projection'!K25 -> -11508.45902 | H14: =+'Operation Projection'!M25 -> -11853.71279 | I14: =+'Operation Projection'!O25 -> -12209.32418 | J14: =+'Operation Projection'!Q25 -> -12575.6039 | K14: =+'Operation Projection'!S25 -> -12952.87202 | L14: =+'Operation Projection'!U25 -> -13341.45818 | M14: =+'Operation Projection'!W25 -> -13741.70192 | N14: =+'Operation Projection'!Y25 -> -14153.95298
B15: =+'Operation Projection'!B26 -> Telephone | D15: =+'Operation Projection'!E26 -> -56.22694518 | E15: =+'Operation Projection'!G26 -> -57.91375353 | F15: =+'Operation Projection'!I26 -> -59.65116614 | G15: =+'Operation Projection'!K26 -> -61.44070113 | H15: =+'Operation Projection'!M26 -> -63.28392216 | I15: =+'Operation Projection'!O26 -> -65.18243982 | J15: =+'Operation Projection'!Q26 -> -67.13791302 | K15: =+'Operation Projection'!S26 -> -69.15205041 | L15: =+'Operation Projection'!U26 -> -71.22661192 | M15: =+'Operation Projection'!W26 -> -73.36341028 | N15: =+'Operation Projection'!Y26 -> -75.56431259
B16: =+'Operation Projection'!B27 -> Other Expenses | D16: =+'Operation Projection'!E27 -> -187.1857586 | E16: =+'Operation Projection'!G27 -> -192.8013313 | F16: =+'Operation Projection'!I27 -> -198.5853713 | G16: =+'Operation Projection'!K27 -> -204.5429324 | H16: =+'Operation Projection'!M27 -> -210.6792204 | I16: =+'Operation Projection'!O27 -> -216.999597 | J16: =+'Operation Projection'!Q27 -> -223.5095849 | K16: =+'Operation Projection'!S27 -> -230.2148724 | L16: =+'Operation Projection'!U27 -> -237.1213186 | M16: =+'Operation Projection'!W27 -> -244.2349582 | N16: =+'Operation Projection'!Y27 -> -251.5620069
B17: =+'Operation Projection'!B28 -> Total Departmental Expenses | D17: =SUM(D13:D16) -> -7807190.341 | E17: =SUM(E13:E16) -> -8201730.613 | F17: -8678915.436 | G17: -9236866.514 | H17: -9820483.633 | I17: -10367663.31 | J17: -11068906.39 | K17: -11668919.97 | L17: -12294972.34 | M17: -12663821.51 | N17: -13043736.16
B20: =+'Operation Projection'!B31 -> Total Gross Income | D20: =+D9+D17 -> 11698160.26 | E20: =+E9+E17 -> 12289591.91 | F20: 13004979.02 | G20: 13841503.81 | H20: 14716515.61 | I20: 15536858.83 | J20: 16588284.37 | K20: 17487852.48 | L20: 18426465.21 | M20: 18979259.17 | N20: 19548636.95
B23: =+'Operation Projection'!B34 -> UNDISTRIBUTED OPERATING EXPENSES
B24: =+'Operation Projection'!B35 -> Administrative and General | D24: =+'Operation Projection'!E35 -> -975267.5299 | E24: =+'Operation Projection'!G35 -> -1024566.126 | F24: =+'Operation Projection'!I35 -> -1084194.723 | G24: =+'Operation Projection'!K35 -> -1153918.516 | H24: =+'Operation Projection'!M35 -> -1226849.962 | I24: =+'Operation Projection'!O35 -> -1295226.107 | J24: =+'Operation Projection'!Q35 -> -1382859.538 | K24: =+'Operation Projection'!S35 -> -1457838.622 | L24: =+'Operation Projection'!U35 -> -1536071.878 | M24: =+'Operation Projection'!W35 -> -1582154.034 | N24: =+'Operation Projection'!Y35 -> -1629618.655
B25: =+'Operation Projection'!B36 -> Sales & Marketing | D25: =+'Operation Projection'!E36 -> -1072794.283 | E25: =+'Operation Projection'!G36 -> -1127022.739 | F25: =+'Operation Projection'!I36 -> -1192614.195 | G25: =+'Operation Projection'!K36 -> -1269310.368 | H25: =+'Operation Projection'!M36 -> -1349534.959 | I25: =+'Operation Projection'!O36 -> -1424748.718 | J25: =+'Operation Projection'!Q36 -> -1521145.492 | K25: =+'Operation Projection'!S36 -> -1603622.484 | L25: =+'Operation Projection'!U36 -> -1689679.065 | M25: =+'Operation Projection'!W36 -> -1740369.437 | N25: =+'Operation Projection'!Y36 -> -1792580.521
B26: =+'Operation Projection'!B37 -> Property Operation & Maintenance | D26: =+'Operation Projection'!E37 -> -682687.2709 | E26: =+'Operation Projection'!G37 -> -717196.2882 | F26: =+'Operation Projection'!I37 -> -758936.306 | G26: =+'Operation Projection'!K37 -> -807742.9615 | H26: =+'Operation Projection'!M37 -> -858794.9737 | I26: =+'Operation Projection'!O37 -> -906658.2749 | J26: =+'Operation Projection'!Q37 -> -968001.6765 | K26: =+'Operation Projection'!S37 -> -1020487.035 | L26: =+'Operation Projection'!U37 -> -1075250.314 | M26: =+'Operation Projection'!W37 -> -1107507.824 | N26: =+'Operation Projection'!Y37 -> -1140733.059
B27: =+'Operation Projection'!B38 -> Utilities | D27: =+'Operation Projection'!E38 -> -390107.012 | E27: =+'Operation Projection'!G38 -> -409826.4504 | F27: =+'Operation Projection'!I38 -> -433677.8891 | G27: =+'Operation Projection'!K38 -> -461567.4066 | H27: =+'Operation Projection'!M38 -> -490739.9849 | I27: =+'Operation Projection'!O38 -> -518090.4428 | J27: =+'Operation Projection'!Q38 -> -553143.8151 | K27: =+'Operation Projection'!S38 -> -583135.4488 | L27: =+'Operation Projection'!U38 -> -614428.7511 | M27: =+'Operation Projection'!W38 -> -632861.6136 | N27: =+'Operation Projection'!Y38 -> -651847.462
B28: =+'Operation Projection'!B39 -> Total Undistributed Operating Expenses | D28: =SUM(D24:D27) -> -3120856.096 | E28: =SUM(E24:E27) -> -3278611.603 | F28: -3469423.113 | G28: -3692539.253 | H28: -3925919.88 | I28: -4144723.542 | J28: -4425150.521 | K28: -4665083.591 | L28: -4915430.009 | M28: -5062892.909 | N28: -5214779.696
B31: =+'Operation Projection'!B42 -> Gross Operating Profit | D31: =+D20+D28 -> 8577304.161 | E31: =+'Operation Projection'!G42 -> 9010980.303 | F31: =+'Operation Projection'!I42 -> 9535555.908 | G31: =+'Operation Projection'!K42 -> 10148964.56 | H31: =+'Operation Projection'!M42 -> 10790595.73 | I31: =+'Operation Projection'!O42 -> 11392135.29 | J31: =+'Operation Projection'!Q42 -> 12163133.85 | K31: =+'Operation Projection'!S42 -> 12822768.89 | L31: =+'Operation Projection'!U42 -> 13511035.21 | M31: =+'Operation Projection'!W42 -> 13916366.26 | N31: =+'Operation Projection'!Y42 -> 14333857.25
B34: =+'Operation Projection'!B45 -> NON-OPERATING EXPENSES
B35: =+'Operation Projection'!B46 -> Management Fees | D35: =+'Operation Projection'!E46 -> -487633.7649 | E35: =+'Operation Projection'!G46 -> -512283.063 | F35: =+'Operation Projection'!I46 -> -542097.3614 | G35: =+'Operation Projection'!K46 -> -576959.2582 | H35: =+'Operation Projection'!M46 -> -613424.9812 | I35: =+'Operation Projection'!O46 -> -647613.0535 | J35: =+'Operation Projection'!Q46 -> -691429.7689 | K35: =+'Operation Projection'!S46 -> -728919.311 | L35: =+'Operation Projection'!U46 -> -768035.9389 | M35: =+'Operation Projection'!W46 -> -791077.017 | N35: =+'Operation Projection'!Y46 -> -814809.3275
B36: =+'Operation Projection'!B47 -> Real Estate Taxes | D36: =+'Operation Projection'!E47 -> -2625000 | E36: =+'Operation Projection'!G47 -> -2703750 | F36: =+'Operation Projection'!I47 -> -2784862.5 | G36: =+'Operation Projection'!K47 -> -2868408.375 | H36: =+'Operation Projection'!M47 -> -2954460.626 | I36: =+'Operation Projection'!O47 -> -3043094.445 | J36: =+'Operation Projection'!Q47 -> -3134387.278 | K36: =+'Operation Projection'!S47 -> -3228418.897 | L36: =+'Operation Projection'!U47 -> -3325271.464 | M36: =+'Operation Projection'!W47 -> -3425029.608 | N36: =+'Operation Projection'!Y47 -> -3527780.496
B37: =+'Operation Projection'!B48 -> Insurance | D37: =+'Operation Projection'!E48 -> -214000 | E37: =+'Operation Projection'!G48 -> -220420 | F37: =+'Operation Projection'!I48 -> -227032.6 | G37: =+'Operation Projection'!K48 -> -233843.578 | H37: =+'Operation Projection'!M48 -> -240858.8853 | I37: =+'Operation Projection'!O48 -> -248084.6519 | J37: =+'Operation Projection'!Q48 -> -255527.1915 | K37: =+'Operation Projection'!S48 -> -263193.0072 | L37: =+'Operation Projection'!U48 -> -271088.7974 | M37: =+'Operation Projection'!W48 -> -279221.4613 | N37: =+'Operation Projection'!Y48 -> -287598.1052
B38: =+'Operation Projection'!B49 -> Ground Lease | D38: =+'Operation Projection'!E49 -> -332400 | E38: =+'Operation Projection'!G49 -> -342372 | F38: =+'Operation Projection'!I49 -> -352643.16 | G38: =+'Operation Projection'!K49 -> -363222.4548 | H38: =+'Operation Projection'!M49 -> -374119.1284 | I38: =+'Operation Projection'!O49 -> -385342.7023 | J38: =+'Operation Projection'!Q49 -> -396902.9834 | K38: =+'Operation Projection'!S49 -> -408810.0729 | L38: =+'Operation Projection'!U49 -> -421074.3751 | M38: =+'Operation Projection'!W49 -> -433706.6063 | N38: =+'Operation Projection'!Y49 -> -446717.8045
B39: =+'Operation Projection'!B50 -> Capital Reserves (FF&E) | D39: =+'Operation Projection'!E50 -> -1352000 | E39: =+'Operation Projection'!G50 -> -1392560 | F39: =+'Operation Projection'!I50 -> -1434336.8 | G39: =+'Operation Projection'!K50 -> -1477366.904 | H39: =+'Operation Projection'!M50 -> -1521687.911 | I39: =+'Operation Projection'!O50 -> -1567338.548 | J39: =+'Operation Projection'!Q50 -> -1614358.705 | K39: =+'Operation Projection'!S50 -> -1662789.466 | L39: =+'Operation Projection'!U50 -> -1712673.15 | M39: =+'Operation Projection'!W50 -> -1764053.345 | N39: =+'Operation Projection'!Y50 -> -1816974.945
B40: =+'Operation Projection'!B51 -> Total Non-operating expenses | D40: =SUM(D35:D39) -> -5011033.765 | E40: =SUM(E35:E39) -> -5171385.063 | F40: -5340972.421 | G40: -5519800.57 | H40: -5704551.532 | I40: -5891473.401 | J40: -6092605.927 | K40: -6292130.754 | L40: -6498143.725 | M40: -6693088.037 | N40: -6893880.678
B43: =+'Operation Projection'!B54 -> Net Operating Income | D43: =+D31+D40 -> 3566270.396 | E43: =+E31+E40 -> 3839595.24 | F43: 4194583.486 | G43: 4629163.992 | H43: 5086044.202 | I43: 5500661.888 | J43: 6070527.92 | K43: 6530638.132 | L43: 7012891.481 | M43: 7223278.225 | N43: 7439976.572
B46: LOAN:
B47: Total Begining Loan Balance | C47: 0 | D47: =+C53 -> 37215600 | E47: =+D53 -> 36655451.81 | F47: 36067296.22 | G47: 35449732.84 | H47: 34801291.29 | I47: 34120427.67 | J47: 33405520.87 | K47: 32654868.72 | L47: 31866683.97 | M47: 31039089.98 | N47: 0
B48: Addition | C48: =+Assumptions!G12 -> 37215600
B49: Principal | D49: =+D51-D50 -> -560148.1874 | E49: =+E51-E50 -> -588155.5967 | F49: -617563.3766 | G49: -648441.5454 | H49: -680863.6227 | I49: -714906.8038 | J49: -750652.144 | K49: -788184.7512 | L49: -827593.9888 | M49: -868973.6882 | N49: 0
B50: Interests | D50: =-D47*Assumptions!$H$8 -> -1860780 | E50: =-E47*Assumptions!$H$8 -> -1832772.591 | F50: =-F47*Assumptions!$H$8 -> -1803364.811 | G50: =-G47*Assumptions!$H$8 -> -1772486.642 | H50: =-H47*Assumptions!$H$8 -> -1740064.565 | I50: =-I47*Assumptions!$H$8 -> -1706021.384 | J50: =-J47*Assumptions!$H$8 -> -1670276.043 | K50: =-K47*Assumptions!$H$8 -> -1632743.436 | L50: =-L47*Assumptions!$H$8 -> -1593334.199 | M50: =-M47*Assumptions!$H$8 -> -1551954.499 | N50: =-N47*Assumptions!$H$8 -> 0
B51: Debt Service | D51: =IF(D3>Assumptions!$D$4,0,IF(D3<=Assumptions!$H$6,-D47*Assumptions!$H$8,PMT(Assumptions!$H$8,Assumptions!$H$7,Assumptions!$G$12))) -> -2420928.187 | E51: =IF(E3>Assumptions!$D$4,0,IF(E3<=Assumptions!$H$6,-E47*Assumptions!$H$8,PMT(Assumptions!$H$8,Assumptions!$H$7,Assumptions!$G$12))) -> -2420928.187 | F51: =IF(F3>Assumptions!$D$4,0,IF(F3<=Assumptions!$H$6,-F47*Assumptions!$H$8,PMT(Assumptions!$H$8,Assumptions!$H$7,Assumptions!$G$12))) -> -2420928.187 | G51: =IF(G3>Assumptions!$D$4,0,IF(G3<=Assumptions!$H$6,-G47*Assumptions!$H$8,PMT(Assumptions!$H$8,Assumptions!$H$7,Assumptions!$G$12))) -> -2420928.187 | H51: =IF(H3>Assumptions!$D$4,0,IF(H3<=Assumptions!$H$6,-H47*Assumptions!$H$8,PMT(Assumptions!$H$8,Assumptions!$H$7,Assumptions!$G$12))) -> -2420928.187 | I51: =IF(I3>Assumptions!$D$4,0,IF(I3<=Assumptions!$H$6,-I47*Assumptions!$H$8,PMT(Assumptions!$H$8,Assumptions!$H$7,Assumptions!$G$12))) -> -2420928.187 | J51: =IF(J3>Assumptions!$D$4,0,IF(J3<=Assumptions!$H$6,-J47*Assumptions!$H$8,PMT(Assumptions!$H$8,Assumptions!$H$7,Assumptions!$G$12))) -> -2420928.187 | K51: =IF(K3>Assumptions!$D$4,0,IF(K3<=Assumptions!$H$6,-K47*Assumptions!$H$8,PMT(Assumptions!$H$8,Assumptions!$H$7,Assumptions!$G$12))) -> -2420928.187 | L51: =IF(L3>Assumptions!$D$4,0,IF(L3<=Assumptions!$H$6,-L47*Assumptions!$H$8,PMT(Assumptions!$H$8,Assumptions!$H$7,Assumptions!$G$12))) -> -2420928.187 | M51: =IF(M3>Assumptions!$D$4,0,IF(M3<=Assumptions!$H$6,-M47*Assumptions!$H$8,PMT(Assumptions!$H$8,Assumptions!$H$7,Assumptions!$G$12))) -> -2420928.187 | N51: =IF(N3>Assumptions!$D$4,0,IF(N3<=Assumptions!$H$6,-N47*Assumptions!$H$8,PMT(Assumptions!$H$8,Assumptions!$H$7,Assumptions!$G$12))) -> 0
B52: Payoff | D52: =IF(D3=Assumptions!$D$4,-(D47+D49),0) -> 0 | E52: =IF(E3=Assumptions!$D$4,-(E47+E49),0) -> 0 | F52: =IF(F3=Assumptions!$D$4,-(F47+F49),0) -> 0 | G52: =IF(G3=Assumptions!$D$4,-(G47+G49),0) -> 0 | H52: =IF(H3=Assumptions!$D$4,-(H47+H49),0) -> 0 | I52: =IF(I3=Assumptions!$D$4,-(I47+I49),0) -> 0 | J52: =IF(J3=Assumptions!$D$4,-(J47+J49),0) -> 0 | K52: =IF(K3=Assumptions!$D$4,-(K47+K49),0) -> 0 | L52: =IF(L3=Assumptions!$D$4,-(L47+L49),0) -> 0 | M52: =IF(M3=Assumptions!$D$4,-(M47+M49),0) -> -30170116.3 | N52: =IF(N3=Assumptions!$D$4,-(N47+N49),0) -> 0
B53: Total Ending Loan Balance | C53: =C47+C48+C49+C52 -> 37215600 | D53: =D47+D48+D49+D52 -> 36655451.81 | E53: =E47+E48+E49+E52 -> 36067296.22 | F53: =F47+F48+F49+F52 -> 35449732.84 | G53: 34801291.29 | H53: 34120427.67 | I53: 33405520.87 | J53: 32654868.72 | K53: 31866683.97 | L53: 31039089.98 | M53: 0 | N53: 0
B56: Levered Cash Flow | D56: =IF(D3>Assumptions!$D$4,0,D43+D48+D51) -> 1145342.209 | E56: =IF(E3>Assumptions!$D$4,0,E43+E48+E51) -> 1418667.053 | F56: =IF(F3>Assumptions!$D$4,0,F43+F48+F51) -> 1773655.299 | G56: =IF(G3>Assumptions!$D$4,0,G43+G48+G51) -> 2208235.804 | H56: =IF(H3>Assumptions!$D$4,0,H43+H48+H51) -> 2665116.015 | I56: =IF(I3>Assumptions!$D$4,0,I43+I48+I51) -> 3079733.7 | J56: =IF(J3>Assumptions!$D$4,0,J43+J48+J51) -> 3649599.733 | K56: =IF(K3>Assumptions!$D$4,0,K43+K48+K51) -> 4109709.944 | L56: =IF(L3>Assumptions!$D$4,0,L43+L48+L51) -> 4591963.293 | M56: =IF(M3>Assumptions!$D$4,0,M43+M48+M51) -> 4802350.038 | N56: =IF(N3>Assumptions!$D$4,0,N43+N48+N51) -> 0
B58: Sale | D58: =IF(D3=Assumptions!$D$4,'Cash Flow'!E43/Assumptions!$D$7,0) -> 0 | E58: =IF(E3=Assumptions!$D$4,'Cash Flow'!F43/Assumptions!$D$7,0) -> 0 | F58: =IF(F3=Assumptions!$D$4,'Cash Flow'!G43/Assumptions!$D$7,0) -> 0 | G58: =IF(G3=Assumptions!$D$4,'Cash Flow'!H43/Assumptions!$D$7,0) -> 0 | H58: =IF(H3=Assumptions!$D$4,'Cash Flow'!I43/Assumptions!$D$7,0) -> 0 | I58: =IF(I3=Assumptions!$D$4,'Cash Flow'!J43/Assumptions!$D$7,0) -> 0 | J58: =IF(J3=Assumptions!$D$4,'Cash Flow'!K43/Assumptions!$D$7,0) -> 0 | K58: =IF(K3=Assumptions!$D$4,'Cash Flow'!L43/Assumptions!$D$7,0) -> 0 | L58: =IF(L3=Assumptions!$D$4,'Cash Flow'!M43/Assumptions!$D$7,0) -> 0 | M58: =IF(M3=Assumptions!$D$4,'Cash Flow'!N43/Assumptions!$D$7,0) -> 123999609.5 | N58: =IF(N3=Assumptions!$D$4,'Cash Flow'!O43/Assumptions!$D$7,0) -> 0
B59: Costs of Sale | D59: =-D58*Assumptions!$D$8 -> 0 | E59: =-E58*Assumptions!$D$8 -> 0 | F59: =-F58*Assumptions!$D$8 -> 0 | G59: =-G58*Assumptions!$D$8 -> 0 | H59: =-H58*Assumptions!$D$8 -> 0 | I59: =-I58*Assumptions!$D$8 -> 0 | J59: =-J58*Assumptions!$D$8 -> 0 | K59: =-K58*Assumptions!$D$8 -> 0 | L59: =-L58*Assumptions!$D$8 -> 0 | M59: =-M58*Assumptions!$D$8 -> -2479992.191 | N59: =-N58*Assumptions!$D$8 -> 0
B60: Debt Repayment | D60: =+D52 -> 0 | E60: =+E52 -> 0 | F60: 0 | G60: 0 | H60: 0 | I60: 0 | J60: 0 | K60: 0 | L60: 0 | M60: -30170116.3 | N60: 0
B61: Total Cash Flow from Sale | D61: =SUM(D58:D60) -> 0 | E61: =SUM(E58:E60) -> 0 | F61: 0 | G61: 0 | H61: 0 | I61: 0 | J61: 0 | K61: 0 | L61: 0 | M61: 91349501.05 | N61: 0
B64: Total Cash Flow | C64: =-Assumptions!G12 -> -37215600 | D64: =+D56+D61 -> 1145342.209 | E64: =+E56+E61 -> 1418667.053 | F64: 1773655.299 | G64: 2208235.804 | H64: 2665116.015 | I64: 3079733.7 | J64: 3649599.733 | K64: 4109709.944 | L64: 4591963.293 | M64: 96151851.08 | N64: 0
B67: Deal Level IRR | C67: =IRR(C64:N64) -> 0.141501844
B68: Multiple | C68: =-SUM(D64:N64)/C64 -> 3.245786018
B69: Net Profit | C69: =SUM(C64:N64) -> 83578274.13
B70: Capital | C70: =-C64 -> 37215600
